fUST/lending_fUST_20260702
["ID","MTS","AMOUNT","RATE_DAILY","PERIOD"]
[426851668,1782954416000,-160.0,0.00025264,3]
[426851669,1782954416000,-166.66002171,0.00025264,5]
[426851671,1782954416000,-160.0,0.00027,3]
[426851672,1782954416000,-160.0,0.00027,3]
[426851673,1782954416000,-401.61364071,0.00027062,2]
[426851670,1782954416000,-188.422172,0.00026966,2]
[426851812,1782954638000,-3004.8104786,0.00027238,2]
[426851813,1782954638000,-1948.6854412,0.00027399,2]
[426851808,1782954638000,-103.12326069,0.00027062,2]
[426851806,1782954638000,-156.0,0.00026962,2]
[426851810,1782954638000,-1066.8531834,0.00027151,2]
[426851837,1782954639000,-515.20148126,0.00028511,7]
[426851838,1782954639000,-500.0,0.00028511,7]
[426851834,1782954639000,-504.68256442,0.00028496,7]
[426851839,1782954639000,-500.0,0.00028511,7]
[426851836,1782954639000,-558.55850572,0.00028511,2]
[426851835,1782954639000,-504.82803708,0.00028496,7]
[426851844,1782954639000,-500.0,0.00028544,2]
[426851841,1782954639000,-559.6140753,0.00028522,2]
[426851847,1782954639000,-500.0,0.00028544,2]
[426851842,1782954639000,-180.10695935,0.00028529,2]
[426851829,1782954639000,-160.0,0.00028319,2]
[426851840,1782954639000,-10552.32108301,0.00028522,2]
[426851846,1782954639000,-500.0,0.00028544,2]
[426851845,1782954639000,-500.0,0.00028544,2]
[426851849,1782954639000,-500.0,0.00028544,2]
[426851843,1782954639000,-220.93524857,0.00028544,2]
[426851827,1782954639000,-858.14416246,0.00028315,2]
[426851815,1782954639000,-186.0,0.00027764,2]
[426851830,1782954639000,-4392.56413354,0.00028368,2]
[426851814,1782954639000,-164.068075,0.00027649,2]
[426851859,1782954639000,-500.0,0.00028544,2]
[426851816,1782954639000,-2216.0,0.00027984,2]
[426851817,1782954639000,-160.0,0.00028,3]
[426851818,1782954639000,-278.39336411,0.00028314,2]
[426851820,1782954639000,-482.70609138,0.00028315,2]
[426851819,1782954639000,-212.6190558,0.00028314,2]
[426851824,1782954639000,-680.65967327,0.00028315,2]
[426851833,1782954639000,-180.10695935,0.00028485,2]
[426851823,1782954639000,-359.86031131,0.00028315,2]
[426851832,1782954639000,-180.10695935,0.0002844,2]
[426851821,1782954639000,-632.07377398,0.00028315,2]
[426851825,1782954639000,-979.16977958,0.00028315,2]
[426851826,1782954639000,-909.2760483,0.00028315,2]
[426851828,1782954639000,-639.75166456,0.00028315,2]
[426851831,1782954639000,-180.10695935,0.00028396,2]
[426851858,1782954639000,-500.0,0.00028544,2]
[426851822,1782954639000,-199.92239517,0.00028315,2]
[426851860,1782954639000,-500.0,0.00028544,2]
[426851873,1782954639000,-500.0,0.00028599,7]
[426851874,1782954639000,-470.0,0.000286,2]
[426851876,1782954639000,-500.0,0.0002862,10]
[426851875,1782954639000,-150.0,0.000286,2]
[426851877,1782954639000,-192.841768,0.00028621,2]
[426851878,1782954639000,-6920.64444615,0.00028622,2]
[426851880,1782954639000,-300.0,0.00028622,2]
[426851881,1782954639000,-352.23,0.00028622,3]
[426851857,1782954639000,-500.0,0.00028544,2]
[426851879,1782954639000,-3079.35555385,0.00028622,2]
[426851882,1782954639000,-468.753779,0.00028622,7]
[426851883,1782954639000,-468.753779,0.00028622,7]
[426851884,1782954639000,-468.753779,0.00028622,7]
[426851885,1782954639000,-468.753779,0.00028622,7]
[426851886,1782954639000,-1068.66147285,0.00028627,14]
[426851872,1782954639000,-160.0,0.00028578,2]
[426851871,1782954639000,-160.0,0.00028578,2]
[426851867,1782954639000,-319.2974788,0.00028545,2]
[426851870,1782954639000,-417.15472785,0.00028578,2]
[426851848,1782954639000,-500.0,0.00028544,2]
[426851850,1782954639000,-500.0,0.00028544,2]
[426851851,1782954639000,-500.0,0.00028544,2]
[426851852,1782954639000,-500.0,0.00028544,2]
[426851856,1782954639000,-500.0,0.00028544,2]
[426851854,1782954639000,-563.31479165,0.00028544,2]
[426851853,1782954639000,-500.0,0.00028544,2]
[426851887,1782954639000,-66898.18194223,0.00028629,30]
[426851855,1782954639000,-500.0,0.00028544,2]
[426851865,1782954639000,-500.0,0.00028544,2]
[426851866,1782954639000,-500.0,0.00028544,2]
[426851868,1782954639000,-2537.9088353,0.00028545,2]
[426851862,1782954639000,-500.0,0.00028544,2]
[426851864,1782954639000,-500.0,0.00028544,2]
[426851863,1782954639000,-200.0,0.00028544,2]
[426851869,1782954639000,-160.0,0.00028578,2]
[426851861,1782954639000,-500.0,0.00028544,2]
[426851888,1782954639000,-2538.10372732,0.00028629,30]
[426851892,1782954641000,-160.0,0.00027595,2]
[426851893,1782954641000,-8856.3753109,0.00028629,30]
[426851909,1782954644000,-137.41064827,0.00028629,30]
[426851913,1782954647000,-866.80829591,0.00028629,30]
[426851912,1782954647000,-1516.61523782,0.00028629,30]
[426851918,1782954882000,5022.0,0.00013,2]
[426851921,1782955182000,1843.17330083,0.00013,2]
[426851925,1782955283000,222.0,0.00028767,120]
[426851928,1782955533000,222.0,0.00028767,120]
[426851929,1782955583000,333.0,0.00028767,120]
[426851947,1782955831000,-369.13622285,0.00024,3]
[426851957,1782955831000,-1057.4620147,0.00028472,2]
[426851959,1782955831000,-820.24098598,0.000285,5]
[426851951,1782955831000,-275.18942878,0.00024,2]
[426851955,1782955831000,-1000.1142874,0.00028,3]
[426851953,1782955831000,-166.66666667,0.00027397,30]
[426851949,1782955831000,-48.018505,0.00024,3]
[426851961,1782955832000,-500.0,0.00028511,7]
[426851960,1782955832000,-1018.31645702,0.000285,5]
[426851963,1782955832000,-138.35645703,0.0002852,5]
[426851962,1782955832000,-861.64354297,0.0002852,5]
[426851964,1782955832000,-292.7783612,0.00028521,2]
[426851965,1782955832000,-7.2216388,0.00028521,2]
[426851968,1782955832000,-5901.2166292,0.00028522,2]
[426851966,1782955832000,-444.0,0.00028522,2]
[426851967,1782955832000,-2805.36287975,0.00028522,2]
[426852037,1782955838000,-526.70143864,0.00028522,2]
[426852064,1782955838000,-500.0,0.00028543,2]
[426852053,1782955838000,-267.95555271,0.00028543,2]
[426852073,1782955838000,-500.0,0.00028543,2]
[426852071,1782955838000,-500.0,0.00028543,2]
[426852060,1782955838000,-500.0,0.00028543,2]
[426852061,1782955838000,-500.0,0.00028543,2]
[426852057,1782955838000,-500.0,0.00028543,2]
[426852056,1782955838000,-500.0,0.00028543,2]
[426852070,1782955838000,-500.0,0.00028543,2]
[426852049,1782955838000,-500.0,0.00028543,2]
[426852043,1782955838000,-1000.0,0.0002854,5]
[426852041,1782955838000,-555.0,0.0002854,2]
[426852047,1782955838000,-156.99798858,0.00028543,2]
[426852035,1782955838000,-928.426,0.0002792,2]
[426852039,1782955838000,-522.30647028,0.00028522,2]
[426852051,1782955838000,-500.0,0.00028543,2]
[426852076,1782955838000,-500.0,0.00028543,2]
[426852045,1782955838000,-444.0,0.00028543,2]
[426852068,1782955838000,-500.0,0.00028543,2]
[426852077,1782955838000,-1340.85025384,0.00028544,2]
[426852107,1782955838000,-8101.00012829,0.0002862,2]
[426852105,1782955838000,-1000.0,0.000286,5]
[426852103,1782955838000,-1000.0,0.000286,5]
[426852101,1782955838000,-410.0,0.00028599,7]
[426852097,1782955838000,-1000.0,0.0002858,5]
[426852093,1782955838000,-160.0,0.00028574,2]
[426852099,1782955838000,-1273.833444,0.0002858,5]
[426852095,1782955838000,-160.0,0.00028574,2]
[426852083,1782955838000,-1439.44124525,0.00028544,2]
[426852085,1782955838000,-2625.43843103,0.00028544,2]
[426852081,1782955838000,-1930.82436553,0.00028544,2]
[426852080,1782955838000,-888.0,0.00028544,2]
[426852089,1782955838000,-1000.0,0.0002856,5]
[426852066,1782955838000,-500.0,0.00028543,2]
[426852087,1782955838000,-1957.28023324,0.00028544,2]
[426852091,1782955838000,-417.15472785,0.00028574,2]
[426852078,1782955838000,-999.61197587,0.00028544,2]
[426852663,1782955843000,-477.01549924,0.0002862,2]
[426852660,1782955843000,-460.0,0.0002862,2]
[426852665,1782955843000,-4618.65454512,0.0002862,2]
[426852920,1782955845000,4120.44420595,0.0002852,120]
[426853036,1782955846000,-2981.59397237,0.0002862,2]
[426853050,1782955846000,-3684.97192532,0.0002862,2]
[426854129,1782955902000,150.0,0.00022192,7]
[426854128,1782955902000,150.0,0.00022,2]
[426854130,1782955902000,150.0,0.00023014,7]
[426854131,1782955933000,4844.76208927,0.0002852,120]
[426854132,1782956082000,7739.04476797,0.0001251,2]
[426854133,1782956096000,222.20504585,0.0002,120]
[426854135,1782956219000,-151.0,0.00021374,14]
[426854136,1782956297000,1859.51,0.00028767,120]
[426854138,1782956532000,-8.51325022,0.00021374,14]
[426854151,1782956903000,12887.42037586,0.000125,2]
[426854152,1782956906000,10503.03523028,0.00013,2]
[426854153,1782956908000,409.88156669,0.00015,2]
[426854154,1782956915000,605.7421496,0.000149,2]
[426854155,1782956916000,11626.2106901,7.6e-05,2]
[426854157,1782956923000,3114.52408656,0.00012,2]
[426854159,1782956953000,-8445.22713408,0.00021,5]
[426854160,1782956953000,-34.32525355,0.00021374,14]
[426854205,1782957032000,183.90727071,0.00012665,30]
[426854258,1782957040000,-10848.59182018,0.0002465,2]
[426854259,1782957040000,-2912.43847682,0.0002465,2]
[426854255,1782957040000,-150.0,0.00022,2]
[426854257,1782957040000,-150.0,0.00023014,7]
[426854254,1782957040000,-171.43727163,0.00022,2]
[426854256,1782957040000,-694.20206432,0.00023,2]
[426854253,1782957040000,-124.48325049,0.00021374,14]
[426854357,1782957092000,181.89476831,0.00018168,30]
[426854358,1782957153000,181.69222475,0.0001785,30]
[426854359,1782957168000,150.0,0.00028767,120]
[426854360,1782957199000,-151.0,0.00022,2]
[426854362,1782957253000,-179.4045847,0.00021125,2]
[426854363,1782957257000,500.0,0.00028767,120]
[426854364,1782957266000,500.0,0.00028767,120]
[426854365,1782957274000,170.0,0.00028767,120]
[426854366,1782957278000,500.0,0.00028767,120]
[426854367,1782957286000,500.0,0.00028767,120]
[426854369,1782957306000,500.0,0.00028767,120]
[426854368,1782957306000,-5522.04228996,0.0002,2]
[426854370,1782957329000,524.1,0.00028767,120]
[426854371,1782957359000,-1068.66147285,0.0002,2]
[426854372,1782957370000,-3230.34397854,0.0002,2]
[426854373,1782957423000,-150.98943922,0.00022,2]
[426854374,1782957477000,-187.954793,0.00023307,2]
[426854376,1782957530000,-300.0,0.00023307,2]
[426854378,1782957541000,-79.413335,0.00023307,2]
[426854380,1782957594000,-293.4823049,0.00023439,2]
[426854386,1782957729000,-3119.8480729,0.00023429,2]
[426854388,1782957745000,-4188.56172211,0.00023464,2]
[426854396,1782957950000,-262.79,0.00022577,3]
[426854397,1782957990000,-232.37967037,0.00023123,2]
[426854398,1782958003000,-39.96032963,0.00023123,2]
[426854400,1782958057000,-5522.04228996,0.00023195,2]
[426854401,1782958110000,-3079.35555385,0.00023195,2]
[426854402,1782958123000,-1398.60215619,0.00023195,2]
[426854406,1782958176000,-269.396393,0.00023288,2]
[426854407,1782958229000,-489.1374332,0.00023452,2]
[426854457,1782958232000,-360.81900095,0.000239,2]
[426854452,1782958232000,-500.0,0.00023464,2]
[426854454,1782958232000,-320.90068005,0.00023648,2]
[426854456,1782958232000,-463.90545655,0.0002365,2]
[426854459,1782958232000,-213.34,0.00024153,2]
[426854463,1782958232000,-434.93092176,0.00024162,2]
[426854464,1782958232000,-500.0,0.00024162,2]
[426854466,1782958232000,-500.0,0.00024162,2]
[426854467,1782958232000,-500.0,0.00024162,2]
[426854470,1782958232000,-409.66913093,0.00024162,2]
[426854469,1782958232000,-500.0,0.00024162,2]
[426854461,1782958232000,-296.43480976,0.00024161,2]
[426854556,1782958238000,-500.0,0.00024162,2]
[426854553,1782958238000,-500.0,0.00024162,2]
[426854551,1782958238000,-500.0,0.00024162,2]
[426854547,1782958238000,-500.0,0.00024162,2]
[426854549,1782958238000,-500.0,0.00024162,2]
[426854525,1782958238000,-167.82105777,0.00024162,2]
[426854545,1782958238000,-500.0,0.00024162,2]
[426854543,1782958238000,-332.17894223,0.00024162,2]
[426854521,1782958238000,-90.33086907,0.00024162,2]
[426854523,1782958238000,-500.0,0.00024162,2]
[426854560,1782958238000,-500.0,0.00024162,2]
[426854564,1782958238000,-500.0,0.00024162,2]
[426854557,1782958238000,-500.0,0.00024162,2]
[426854568,1782958238000,-204.64110772,0.00024162,2]
[426854566,1782958238000,-500.0,0.00024162,2]
[426854589,1782958238000,-500.0,0.00024162,2]
[426854586,1782958238000,-500.0,0.00024162,2]
[426854578,1782958238000,-500.0,0.00024162,2]
[426854583,1782958238000,-500.0,0.00024162,2]
[426854576,1782958238000,-500.0,0.00024162,2]
[426854591,1782958238000,-500.0,0.00024162,2]
[426854585,1782958238000,-500.0,0.00024162,2]
[426854572,1782958238000,-500.0,0.00024162,2]
[426854581,1782958238000,-500.0,0.00024162,2]
[426854562,1782958238000,-500.0,0.00024162,2]
[426854570,1782958238000,-172.5202421,0.00024162,2]
[426854574,1782958238000,-500.0,0.00024162,2]
[426854664,1782958239000,-151.0,0.0002465,2]
[426854682,1782958239000,-151.0,0.0002465,2]
[426854662,1782958239000,-587.61542,0.0002465,2]
[426854680,1782958239000,-151.0,0.0002465,2]
[426854653,1782958239000,-151.0,0.0002465,2]
[426854676,1782958239000,-151.0,0.0002465,2]
[426854674,1782958239000,-151.0,0.0002465,2]
[426854661,1782958239000,-152.858672,0.0002465,2]
[426854651,1782958239000,-151.0,0.0002465,2]
[426854657,1782958239000,-587.61542,0.0002465,2]
[426854684,1782958239000,-226.156695,0.0002465,2]
[426854678,1782958239000,-151.0,0.0002465,2]
[426854666,1782958239000,-587.61542,0.0002465,2]
[426854695,1782958239000,-550.0,0.00025487,2]
[426854686,1782958239000,-380.0,0.00024658,2]
[426854668,1782958239000,-151.0,0.0002465,2]
[426854688,1782958239000,-500.0,0.00024724,2]
[426854672,1782958239000,-151.0,0.0002465,2]
[426854691,1782958239000,-500.0,0.00024998,2]
[426854699,1782958239000,-526.60916865,0.00025546,2]
[426854697,1782958239000,-1250.39232949,0.00025518,2]
[426854693,1782958239000,-500.0,0.00025272,2]
[426854708,1782958239000,-238.76015263,0.00026368,2]
[426854710,1782958239000,-1352.193627,0.00026468,2]
[426854701,1782958239000,-229.264054,0.00025762,2]
[426854655,1782958239000,-151.0,0.0002465,2]
[426854670,1782958239000,-587.61542,0.0002465,2]
[426854659,1782958239000,-151.0,0.0002465,2]
[426854609,1782958239000,-151.0,0.0002454,2]
[426854638,1782958239000,-213.34,0.0002464,2]
[426854593,1782958239000,-500.0,0.00024162,2]
[426854595,1782958239000,-500.0,0.00024162,2]
[426854607,1782958239000,-500.0,0.0002445,2]
[426854597,1782958239000,-500.0,0.00024162,2]
[426854703,1782958239000,-270.52731916,0.00025788,2]
[426854599,1782958239000,-500.0,0.00024162,2]
[426854603,1782958239000,-176.66949387,0.00024165,6]
[426854611,1782958239000,-151.0,0.0002454,2]
[426854601,1782958239000,-883.50170704,0.00024165,2]
[426854605,1782958239000,-289.31693136,0.00024165,2]
[426854613,1782958239000,-151.0,0.0002454,2]
[426854615,1782958239000,-151.0,0.0002454,2]
[426854617,1782958239000,-151.0,0.0002454,2]
[426854649,1782958239000,-151.0,0.0002465,2]
[426854620,1782958239000,-150.70478856,0.0002454,2]
[426854618,1782958239000,-151.0,0.0002454,2]
[426854636,1782958239000,-213.34,0.0002464,2]
[426854628,1782958239000,-1250.39232952,0.0002455,2]
[426854634,1782958239000,-239.19793005,0.0002455,2]
[426854624,1782958239000,-500.0,0.00024546,2]
[426854626,1782958239000,-221.32947503,0.00024547,2]
[426854630,1782958239000,-8100.12033172,0.0002455,2]
[426854632,1782958239000,-211.48782494,0.0002455,2]
[426854642,1782958239000,-103561.81604805,0.0002465,2]
[426854640,1782958239000,-503.90371462,0.00024649,2]
[426854643,1782958239000,-179.41921761,0.0002465,2]
[426854647,1782958239000,-152.534202,0.0002465,2]
[426854645,1782958239000,-151.0,0.0002465,2]
[426854622,1782958239000,-510.3501074,0.00024546,2]
[426854706,1782958239000,-807.9633,0.000261,3]
[426854704,1782958239000,-151.8266865,0.00025948,2]
[426854716,1782958239000,-151.0,0.00026484,2]
[426854771,1782958239000,-587.61542,0.00027381,2]
[426854781,1782958239000,-151.0,0.00027381,2]
[426854777,1782958239000,-151.0,0.00027381,2]
[426854783,1782958239000,-151.0,0.00027381,2]
[426854786,1782958239000,-151.0,0.00027454,7]
[426854788,1782958239000,-301.533266,0.00027454,7]
[426854790,1782958239000,-151.0,0.00027454,7]
[426854785,1782958239000,-8100.12033169,0.00027389,2]
[426854792,1782958239000,-1250.39232949,0.00027454,2]
[426854802,1782958239000,-229.264054,0.00027931,2]
[426854794,1782958239000,-162.70147739,0.00027608,3]
[426854805,1782958239000,-488.09765937,0.00028151,2]
[426854807,1782958239000,-162.70147739,0.00028156,3]
[426854768,1782958239000,-587.61542,0.00027381,2]
[426854803,1782958239000,-220.0,0.00028107,2]
[426854800,1782958239000,-151.48986251,0.000279,5]
[426854798,1782958239000,-162.70147739,0.00027882,3]
[426854809,1782958239000,-160.0,0.00028205,2]
[426854811,1782958239000,-160.0,0.00028205,2]
[426854813,1782958239000,-600.0,0.00028315,2]
[426854815,1782958239000,-698.75729835,0.00028421,2]
[426854817,1782958239000,-1250.39232949,0.00028422,2]
[426854819,1782958239000,-162.70147739,0.0002843,3]
[426854821,1782958239000,-417.15472785,0.00028454,2]
[426854824,1782958239000,-9901.2391156,0.00028522,2]
[426854822,1782958239000,-110425.35248982,0.00028522,2]
[426854712,1782958239000,-155.756912,0.00026484,2]
[426854830,1782958239000,-160.0,0.00028522,7]
[426854796,1782958239000,-1488.909,0.00027862,2]
[426854779,1782958239000,-151.0,0.00027381,2]
[426854826,1782958239000,-160.0,0.00028522,7]
[426854775,1782958239000,-587.61542,0.00027381,2]
[426854774,1782958239000,-209.934889,0.00027381,2]
[426854714,1782958239000,-180.363303,0.00026484,2]
[426854718,1782958239000,-151.0,0.00026484,2]
[426854722,1782958239000,-587.61542,0.00026484,2]
[426854724,1782958239000,-151.0,0.00026484,2]
[426854726,1782958239000,-587.61542,0.00026484,2]
[426854730,1782958239000,-587.61542,0.00026484,2]
[426854732,1782958239000,-151.0,0.00026484,2]
[426854728,1782958239000,-151.0,0.00026484,2]
[426854734,1782958239000,-587.61542,0.00026484,2]
[426854736,1782958239000,-151.0,0.00026484,2]
[426854738,1782958239000,-222.177567,0.00026484,2]
[426854748,1782958239000,-229.264054,0.00026847,2]
[426854750,1782958239000,-167.23406459,0.00027189,2]
[426854720,1782958239000,-151.0,0.00026484,2]
[426854752,1782958239000,-164.93302858,0.00027189,2]
[426854756,1782958239000,-155.03140951,0.00027189,2]
[426854766,1782958239000,-151.0,0.00027381,2]
[426854763,1782958239000,-587.61542,0.00027381,2]
[426854761,1782958239000,-202.928,0.00027349,2]
[426854745,1782958239000,-151.0,0.00026484,2]
[426854747,1782958239000,-1250.39232949,0.00026486,2]
[426854769,1782958239000,-151.0,0.00027381,2]
[426854740,1782958239000,-151.0,0.00026484,2]
[426854743,1782958239000,-151.0,0.00026484,2]
[426854760,1782958239000,-747.0,0.00027349,2]
[426854758,1782958239000,-171.14520348,0.00027189,2]
[426854754,1782958239000,-152.28947796,0.00027189,2]
[426854741,1782958239000,-241.994011,0.00026484,2]
[426854914,1782958240000,-160.0,0.0002863,30]
[426854911,1782958240000,-226934.18235635,0.0002863,30]
[426854913,1782958240000,-417.15472785,0.0002863,30]
[426854909,1782958240000,-504.59053731,0.00028624,10]
[426854907,1782958240000,-1071.90354882,0.00028623,14]
[426854895,1782958240000,-292.04372893,0.00028544,2]
[426854901,1782958240000,-350.10202224,0.00028544,2]
[426854899,1782958240000,-306.64591538,0.00028544,2]
[426854905,1782958240000,-5694.74596921,0.0002857,7]
[426854916,1782958240000,-160.0,0.0002863,30]
[426854897,1782958240000,-456.31832645,0.00028544,2]
[426854903,1782958240000,-230.09309092,0.00028545,2]
[426854927,1782958240000,-9735.261339,0.00028666,2]
[426854920,1782958240000,-487.0,0.0002863,2]
[426854931,1782958240000,-162.70147739,0.00028704,3]
[426854922,1782958240000,-487.0,0.0002863,2]
[426854933,1782958240000,-158.91,0.00028709,7]
[426854925,1782958240000,-370.908852,0.00028666,2]
[426854923,1782958240000,-937.3,0.0002863,2]
[426854929,1782958240000,-1090.54,0.000287,30]
[426854936,1782958240000,-151.0,0.000288,10]
[426854938,1782958240000,-200.0,0.00028829,120]
[426854937,1782958240000,-156.98470935,0.00028819,30]
[426854941,1782958240000,-167.99,0.00028991,15]
[426854939,1782958240000,-190.62368273,0.00028978,2]
[426854883,1782958240000,-1291.71300986,0.00028544,2]
[426854918,1782958240000,-487.0,0.0002863,2]
[426854893,1782958240000,-255.53826281,0.00028544,2]
[426854859,1782958240000,-587.61542,0.00028522,7]
[426854889,1782958240000,-483.01234343,0.00028544,2]
[426854834,1782958240000,-151.0,0.00028522,7]
[426854840,1782958240000,-587.61542,0.00028522,7]
[426854842,1782958240000,-587.61542,0.00028522,7]
[426854845,1782958240000,-151.0,0.00028522,7]
[426854849,1782958240000,-587.61542,0.00028522,7]
[426854847,1782958240000,-587.61542,0.00028522,7]
[426854844,1782958240000,-151.0,0.00028522,7]
[426854836,1782958240000,-410.44,0.00028522,2]
[426854940,1782958240000,-162.70147739,0.00028978,3]
[426854851,1782958240000,-151.0,0.00028522,7]
[426854853,1782958240000,-151.0,0.00028522,7]
[426854832,1782958240000,-151.0,0.00028522,7]
[426854887,1782958240000,-309.1278998,0.00028544,2]
[426854857,1782958240000,-587.61542,0.00028522,7]
[426854861,1782958240000,-587.615415,0.00028522,7]
[426854863,1782958240000,-151.0,0.00028522,7]
[426854867,1782958240000,-151.0,0.00028522,7]
[426854875,1782958240000,-262.96353248,0.00028544,2]
[426854871,1782958240000,-1589.0,0.0002853,30]
[426854869,1782958240000,-300.0,0.00028522,3]
[426854873,1782958240000,-160.0,0.00028544,2]
[426854879,1782958240000,-574.09467105,0.00028544,2]
[426854877,1782958240000,-322.92825247,0.00028544,2]
[426854881,1782958240000,-897.02292351,0.00028544,2]
[426854891,1782958240000,-694.84223677,0.00028544,2]
[426854885,1782958240000,-270.48691232,0.00028544,2]
[426854865,1782958240000,-151.0,0.00028522,7]
[426854944,1782958240000,-170.94174614,0.00029,2]
[426854838,1782958240000,-240.243566,0.00028522,7]
[426854943,1782958240000,-9274.90336267,0.00029,2]
[426855007,1782958240000,-653.59,0.00029041,7]
[426855016,1782958240000,-500.0,0.00029041,120]
[426855018,1782958240000,-500.0,0.00029041,120]
[426855020,1782958240000,-500.0,0.00029041,120]
[426855022,1782958240000,-500.0,0.00029041,120]
[426855026,1782958240000,-500.0,0.00029041,120]
[426855024,1782958240000,-500.0,0.00029041,120]
[426855037,1782958240000,-500.0,0.00029041,7]
[426855039,1782958240000,-500.0,0.00029041,7]
[426855027,1782958240000,-564.24609216,0.00029041,120]
[426855029,1782958240000,-510.10338031,0.00029041,7]
[426855033,1782958240000,-151.77625728,0.00029041,7]
[426855031,1782958240000,-524.83047428,0.00029041,7]
[426855035,1782958240000,-519.94216071,0.00029041,7]
[426855041,1782958240000,-500.0,0.00029041,7]
[426855043,1782958240000,-500.0,0.00029041,7]
[426855049,1782958240000,-500.0,0.00029041,7]
[426855047,1782958240000,-500.0,0.00029041,7]
[426855045,1782958240000,-500.0,0.00029041,7]
[426855061,1782958240000,-539.96084138,0.00029041,7]
[426855059,1782958240000,-523.21541908,0.00029041,7]
[426855051,1782958240000,-500.0,0.00029041,7]
[426855053,1782958240000,-500.0,0.00029041,7]
[426855055,1782958240000,-500.0,0.00029041,7]
[426855063,1782958240000,-284.8394582,0.00029041,7]
[426855057,1782958240000,-531.86543736,0.00029041,7]
[426854934,1782958240000,-29011.3552552,0.0002871,2]
[426855005,1782958240000,-653.59,0.00029041,7]
[426854994,1782958240000,-653.59,0.00029041,7]
[426854855,1782958240000,-587.61542,0.00028522,7]
[426855012,1782958240000,-653.59,0.00029041,7]
[426855014,1782958240000,-500.0,0.00029041,120]
[426854948,1782958240000,-182.59,0.00029011,2]
[426854951,1782958240000,-200.0,0.00029022,120]
[426854950,1782958240000,-229.264054,0.00029016,2]
[426854953,1782958240000,-500.0,0.00029041,2]
[426854961,1782958240000,-500.0,0.00029041,2]
[426854959,1782958240000,-500.0,0.00029041,2]
[426854963,1782958240000,-500.0,0.00029041,2]
[426854957,1782958240000,-500.0,0.00029041,2]
[426854955,1782958240000,-500.0,0.00029041,2]
[426854974,1782958240000,-653.59,0.00029041,7]
[426854965,1782958240000,-511.27452681,0.00029041,2]
[426854968,1782958240000,-500.0,0.00029041,7]
[426854972,1782958240000,-653.59,0.00029041,7]
[426854946,1782958240000,-1503.111618,0.00029,2]
[426854970,1782958240000,-336.39812768,0.00029041,7]
[426854978,1782958240000,-653.59,0.00029041,7]
[426855009,1782958240000,-653.59,0.00029041,7]
[426855011,1782958240000,-653.59,0.00029041,7]
[426854993,1782958240000,-653.59,0.00029041,7]
[426854987,1782958240000,-653.59,0.00029041,7]
[426854989,1782958240000,-653.59,0.00029041,7]
[426854991,1782958240000,-653.59,0.00029041,7]
[426854983,1782958240000,-653.59,0.00029041,7]
[426854981,1782958240000,-653.59,0.00029041,7]
[426854979,1782958240000,-653.59,0.00029041,7]
[426854966,1782958240000,-500.0,0.00029041,7]
[426854976,1782958240000,-653.59,0.00029041,7]
[426854985,1782958240000,-653.59,0.00029041,7]
[426855143,1782958241000,-518.91505797,0.00029041,7]
[426855147,1782958241000,-392.69999887,0.00029041,7]
[426855141,1782958241000,-150.96785017,0.00029041,7]
[426855139,1782958241000,-545.39889615,0.00029041,7]
[426855137,1782958241000,-429.77496072,0.00029041,7]
[426855124,1782958241000,-433.05718394,0.00029041,6]
[426855130,1782958241000,-1200.0,0.00029041,2]